{"text_format":"1","workbook":"xlsx","n_sheets":11,"sheets":["Topics","Detailed Topics","Slope Intercept","Slope Intercept (an)","Slope Intercept (an2)","Goodness of Fit","S I (2)","S I (2an)","Data & PT","Data & PT (an)","BMX Data"],"not_rendered":{"charts":6,"images":0,"macros":0,"external_links":0,"defined_names":2,"comments":0,"pivot_tables":1},"unopened":[],"bounds":{"document_bytes":16777216,"sheet_cells":100000,"rows_first":2000,"rows_last":500,"rows_between":2000,"halvings":0,"cell_chars":16384,"cell_head_chars":4096},"cells_cut":0,"cells_raw":0,"read":"whole","date_system":"1900"}

{"sheet":"Topics","index":0,"n_rows":3,"n_cols":2,"rows_kept":3,"cut":false,"hidden":false,"merged":[]}
["Topic","Sheet Link"]
["Slope and Intercept",{"$f":"A2","v":"Slope and Intercept"}]
[null,"S I (2)"]

{"sheet":"Detailed Topics","index":1,"n_rows":7,"n_cols":18,"rows_kept":7,"cut":false,"hidden":false,"merged":[]}
["Video62:","Excel 2013 Statistical Analysis #62: Calculate Slope and Intercept for Regression Line"]
["Number","Topic In Video and minute mark in Video.","Time In Video",null,null,null,null,null,null,null,null,null,null,null,null,null,null,"Text"]
[{"$f":"ROWS(A3:A$3)","v":1},{"$f":"TRIM(REPLACE(R3,1,SEARCH(\")\",R3)+1,\"\"))","v":"Discussion of Slope and y-intercept formulas"},{"$f":"TRIM(LEFT(R3,SEARCH(\")\",R3)))","v":"(00:09)"},null,null,null,null,null,null,null,null,null,null,null,null,null,null,"(00:09) Discussion of Slope and y-intercept formulas"]
[{"$f":"ROWS(A$3:A4)","v":2},{"$f":"TRIM(REPLACE(R4,1,SEARCH(\")\",R4)+1,\"\"))","v":"X Y Scatter Chart / Plot"},{"$f":"TRIM(LEFT(R4,SEARCH(\")\",R4)))","v":"(03:30)"},null,null,null,null,null,null,null,null,null,null,null,null,null,null,"(03:30) X Y Scatter Chart / Plot"]
[{"$f":"ROWS(A$3:A5)","v":3},"Calculate Slope and Intercept","(05:00)",null,null,null,null,null,null,null,null,null,null,null,null,null,null,"(05:00) Calculate Slope and Intercept "]
[{"$f":"ROWS(A$3:A6)","v":4},"Use equation to predict","(09:55)",null,null,null,null,null,null,null,null,null,null,null,null,null,null,"(09:55) Use equation to predict"]
[{"$f":"ROWS(A$3:A7)","v":5},"Example 2 for calculating Slope and Intercept","(10:48)",null,null,null,null,null,null,null,null,null,null,null,null,null,null,"(10:48) Example 2 for calculating Slope and Intercept"]

{"sheet":"Slope Intercept","index":2,"n_rows":41,"n_cols":16,"rows_kept":41,"cut":false,"hidden":false,"merged":[]}
[null,"Xbar","Ybar","Sample Size = n",null,null,null,null,null,null,null,null,"Xbar"," =","Sample Mean of x-values","\"Xbar\""]
["Sample Mean",null,null,null,null,null,null,null,null,null,null,null,"xi"," =","Particular X Value","\"x sub i\""]
[null,"Sx","Sy",null,null,null,null,null,null,null,null,null,"Ybar"," =","Sample Mean of y-values","\"Ybar\""]
["Sample SD",null,null,null,null,null,null,null,null,null,null,null,"yi"," =","Particular Y Value","\"y sub i\""]
[null,"Ad $ Spent per Week and Weekly Sales",null,null,null,null,null,null,null,null,null,null,"sxy"," =","Sample Covariance","\"s sub xy\""]
[null,"X\nAd Dollars Spent per Week","Y\nWeekly Sales","(X-Xbar)*(Y-Ybar)","(X-Xbar)^2",null,null,null,null,null,null,null,"n"," =","count of records or observations for Sample","\"n\""]
[null,14000,97000,null,null,null,null,null,null,null,null,null,"sx"," =","Sample Standard Deviation of X Values","\"s sub x\""]
[null,27000,185000,null,null,null,null,null,null,null,null,null,"sy"," =","Sample Standard Deviation of Y Values","\"s sub y\""]
[null,39900,260000]
[null,17000,143000]
[null,34000,270000]
[null,43000,398000]
[]
[null,"Coefficient of Correlation = r =",null,null,null,"Strength and Direction"]
[null,"Coefficient of Correlation = r ="]
[null,"Coefficient of Determination = r^2 =",null,null,null,"\"Goodness of fit for our line\" ",null,null,null,"How much of the variation in y can be explained by the variation in x (not causation)"]
[null,"Coefficient of Determination = r^2 ="]
[]
[]
["For every one unit of x, how much does y move",null,null,"Slope = m = b1 ="]
[null,null,null,"Slope = m = b1 ="]
["The value of the equation when x = 0",null,null,"Intercept = b = b0 ="]
[null,null,null,"Intercept = b = b0 ="]
[]
[null,null,null,"x",29000]
[null,null,null,{"$f":"\"F(\"&E25&\") =\"","v":"F(29000) ="},null,{"$f":"IF(E23<>\"\",\"y = \"&ROUND(SLOPE(C7:C12,B7:B12),2)&\"*X + \"&ROUND(INTERCEPT(C7:C12,B7:B12),2),\"\")","v":""}]
[]
[null,null,null,"SD for Xbar"]
[]
[]
[]
[]
["Data Points for Xbar and Ybar Lines on Chart:"]
[]
["Xbar","Y"]
[{"$f":"AVERAGE($B$7:$B$12)","v":29150},{"$f":"MIN(C7:C12)","v":97000}]
[{"$f":"AVERAGE($B$7:$B$12)","v":29150},{"$f":"MAX(C7:C12)","v":398000}]
[]
["X","Ybar"]
[{"$f":"MIN(B7:B12)","v":14000},{"$f":"AVERAGE($C$7:$C$12)","v":225500}]
[{"$f":"MAX(B7:B12)","v":43000},225500]

{"sheet":"Slope Intercept (an)","index":3,"n_rows":26,"n_cols":16,"rows_kept":26,"cut":false,"hidden":false,"merged":[]}
[null,"Xbar","Ybar","Sample Size = n",null,null,null,null,null,null,null,null,"Xbar"," =","Sample Mean of x-values","\"Xbar\""]
["Sample Mean",{"$f":"AVERAGE(B7:B12)","v":29150},{"$f":"AVERAGE(C7:C12)","v":225500},{"$f":"COUNT(B7:B12)","v":6},null,null,null,null,null,null,null,null,"xi"," =","Particular X Value","\"x sub i\""]
[null,"Sx","Sy",null,null,null,null,null,null,null,null,null,"Ybar"," =","Sample Mean of y-values","\"Ybar\""]
["Sample SD",{"$f":"_xlfn.STDEV.S(B7:B12)","v":11938.802284986547},{"$f":"_xlfn.STDEV.S(C7:C12)","v":107596.9330417926},null,null,null,null,null,null,null,null,null,"yi"," =","Particular Y Value","\"y sub i\""]
[null,"Ad $ Spent per Week and Weekly Sales",null,null,null,null,null,null,null,null,null,null,"sxy"," =","Sample Covariance","\"s sub xy\""]
[null,"X\nAd Dollars Spent per Week","Y\nWeekly Sales","(X-Xbar)*(Y-Ybar)","(X-Xbar)^2",null,null,null,null,null,null,null,"n"," =","count of records or observations for Sample","\"n\""]
[null,14000,97000,{"$f":"(B7-$B$2)*(C7-$C$2)","v":1946775000},{"$f":"(B7-$B$2)^2","v":229522500},null,null,null,null,null,null,null,"sx"," =","Sample Standard Deviation of X Values","\"s sub x\""]
[null,27000,185000,{"$f":"(B8-$B$2)*(C8-$C$2)","v":87075000},{"$f":"(B8-$B$2)^2","v":4622500},null,null,null,null,null,null,null,"sy"," =","Sample Standard Deviation of Y Values","\"s sub y\""]
[null,39900,260000,370875000,115562500]
[null,17000,143000,1002375000,147622500]
[null,34000,270000,215825000,23522500]
[null,43000,398000,2389125000,191822500]
[null,null,null,{"$f":"SUM(D7:D12)","v":6012050000},{"$f":"SUM(E7:E12)","v":712675000}]
[null,"Coefficient of Correlation = r =",null,{"$f":"D13/(D2-1)/PRODUCT(B4:C4)","v":0.93603465306822053},null,"Strength and Direction"]
[null,"Coefficient of Correlation = r =",null,{"$f":"PEARSON(C7:C12,B7:B12)","v":0.93603465306822031}]
[null,"Coefficient of Determination = r^2 =",null,{"$f":"D15^2","v":0.8761608717445436},null,"\"Goodness of fit for our line\" ",null,null,null,"How much of the variation in y can be explained by the variation in x (not causation)"]
[null,"Coefficient of Determination = r^2 =",null,{"$f":"RSQ(C7:C12,B7:B12)","v":0.87616087174454393}]
[]
[]
["For every one unit of x, how much does y move",null,null,"Slope = m = b1 =",{"$f":"D13/E13","v":8.4358929385764903}]
[null,null,null,"Slope = m = b1 =",{"$f":"SLOPE(C7:C12,B7:B12)","v":8.4358929385764903}]
["The value of the equation when x = 0",null,null,"Intercept = b = b0 =",{"$f":"C2-E20*B2","v":-20406.279159504687}]
[null,null,null,"Intercept = b = b0 =",{"$f":"INTERCEPT(C7:C12,B7:B12)","v":-20406.279159504687}]
[]
[null,null,null,"x",29000]
[null,null,null,{"$f":"\"F(\"&E25&\") =\"","v":"F(29000) ="},{"$f":"E20*E25+E23","v":224234.61605921353}]

{"sheet":"Slope Intercept (an2)","index":4,"n_rows":41,"n_cols":16,"rows_kept":41,"cut":false,"hidden":false,"merged":[]}
[null,"Xbar","Ybar","Sample Size = n",null,null,null,null,null,null,null,null,"Xbar"," =","Sample Mean of x-values","\"Xbar\""]
["Sample Mean",{"$f":"AVERAGE(B7:B12)","v":29150},{"$f":"AVERAGE(C7:C12)","v":225500},{"$f":"COUNT(B7:B12)","v":6},null,null,null,null,null,null,null,null,"xi"," =","Particular X Value","\"x sub i\""]
[null,"Sx","Sy",null,null,null,null,null,null,null,null,null,"Ybar"," =","Sample Mean of y-values","\"Ybar\""]
["Sample SD",{"$f":"_xlfn.STDEV.S(B7:B12)","v":11938.802284986547},{"$f":"_xlfn.STDEV.S(C7:C12)","v":107596.9330417926},null,null,null,null,null,null,null,null,null,"yi"," =","Particular Y Value","\"y sub i\""]
[null,"Ad $ Spent per Week and Weekly Sales",null,null,null,null,null,null,null,null,null,null,"sxy"," =","Sample Covariance","\"s sub xy\""]
[null,"X\nAd Dollars Spent per Week","Y\nWeekly Sales","(X-Xbar)*(Y-Ybar)","(X-Xbar)^2",null,null,null,null,null,null,null,"n"," =","count of records or observations for Sample","\"n\""]
[null,14000,97000,{"$f":"(B7-$B$2)*(C7-$C$2)","v":1946775000},{"$f":"(B7-$B$2)^2","v":229522500},null,null,null,null,null,null,null,"sx"," =","Sample Standard Deviation of X Values","\"s sub x\""]
[null,27000,185000,{"$f":"(B8-$B$2)*(C8-$C$2)","v":87075000},{"$f":"(B8-$B$2)^2","v":4622500},null,null,null,null,null,null,null,"sy"," =","Sample Standard Deviation of Y Values","\"s sub y\""]
[null,39900,260000,370875000,115562500]
[null,17000,143000,1002375000,147622500]
[null,34000,270000,215825000,23522500]
[null,43000,398000,2389125000,191822500]
[null,null,null,{"$f":"SUM(D7:D12)","v":6012050000},{"$f":"SUM(E7:E12)","v":712675000}]
[null,"Coefficient of Correlation = r =",null,{"$f":"D13/(D2-1)/PRODUCT(B4:C4)","v":0.93603465306822053},null,"Strength and Direction"]
[null,"Coefficient of Correlation = r =",null,{"$f":"PEARSON(C7:C12,B7:B12)","v":0.93603465306822031}]
[null,"Coefficient of Determination = r^2 =",null,null,null,"\"Goodness of fit for our line\" ",null,null,null,"How much of the variation in y can be explained by the variation in x (not causation)"]
[null,"Coefficient of Determination = r^2 ="]
[]
[]
["For every one unit of x, how much does y move",null,null,"Slope = m = b1 =",{"$f":"D13/E13","v":8.4358929385764903}]
[null,null,null,"Slope = m = b1 =",{"$f":"SLOPE(C7:C12,B7:B12)","v":8.4358929385764903}]
["The value of the equation when x = 0",null,null,"Intercept = b = b0 =",{"$f":"C2-E20*B2","v":-20406.279159504687}]
[null,null,null,"Intercept = b = b0 =",{"$f":"INTERCEPT(C7:C12,B7:B12)","v":-20406.279159504687}]
[]
[null,null,null,"x",29000]
[null,null,null,{"$f":"\"F(\"&E25&\") =\"","v":"F(29000) ="},{"$f":"E20*E25+E23","v":224234.61605921353},{"$f":"IF(E23<>\"\",\"y = \"&ROUND(SLOPE(C7:C12,B7:B12),2)&\"*X + \"&ROUND(INTERCEPT(C7:C12,B7:B12),2),\"\")","v":"y = 8.44*X + -20406.28"}]
[]
[null,null,null,"SD for Xbar",{"$f":"SQRT(E13/(D2-1))","v":11938.802284986547}]
[]
[]
[]
[]
["Data Points for Xbar and Ybar Lines on Chart:"]
[]
["Xbar","Y"]
[{"$f":"AVERAGE($B$7:$B$12)","v":29150},{"$f":"MIN(C7:C12)","v":97000}]
[{"$f":"AVERAGE($B$7:$B$12)","v":29150},{"$f":"MAX(C7:C12)","v":398000}]
[]
["X","Ybar"]
[{"$f":"MIN(B7:B12)","v":14000},{"$f":"AVERAGE($C$7:$C$12)","v":225500}]
[{"$f":"MAX(B7:B12)","v":43000},225500]

{"sheet":"Goodness of Fit","index":5,"n_rows":33,"n_cols":16,"rows_kept":33,"cut":false,"hidden":false,"merged":[]}
[null,"Xbar","Ybar","Sample Size = n",null,null,"Residual (instead of deviation) = y - predicted y",null,null,null,null,null,"Xbar"," =","Sample Mean of x-values","\"Xbar\""]
["Sample Mean",{"$f":"AVERAGE(B7:B12)","v":29150},{"$f":"AVERAGE(C7:C12)","v":225500},{"$f":"COUNT(B7:B12)","v":6},null,null,"SSE = Sum of Squares Due to Error = How well observations cluster around predicted line",null,null,null,null,null,"xi"," =","Particular X Value","\"x sub i\""]
[null,"Sx","Sy",null,null,null,"SST = Total Sum of Squares = How well observations cluster around Ybar line",null,null,null,null,null,"Ybar"," =","Sample Mean of y-values","\"Ybar\""]
["Sample SD",{"$f":"_xlfn.STDEV.S(B7:B12)","v":11938.802284986547},{"$f":"_xlfn.STDEV.S(C7:C12)","v":107596.9330417926},null,null,null,"SSR = Sum of Squares Due to Regression",null,null,null,null,null,"yi"," =","Particular Y Value","\"y sub i\""]
[null,"Ad $ Spent per Week and Weekly Sales",null,null,null,null,"SST = SSR + SSE. SSR = SST - SSE",null,null,null,null,null,"sxy"," =","Sample Covariance","\"s sub xy\""]
[null,"X\nAd Dollars Spent per Week","Y\nWeekly Sales","(X-Xbar)*(Y-Ybar)","(X-Xbar)^2",null,"f(x) = Predicted y","(y-predicted y)^2\nresidual^2","(y-Ybar)^2","SSR amount",null,null,"n"," =","count of records or observations for Sample","\"n\""]
[null,14000,97000,{"$f":"(B7-$B$2)*(C7-$C$2)","v":1946775000},{"$f":"(B7-$B$2)^2","v":229522500},null,{"$f":"B7*$E$21+$E$23","v":97696.221980566173},{"$f":"(C7-G7)^2","v":484725.0462234852},{"$f":"(C7-$C$2)^2","v":16512250000},{"$f":"($C$2-G7)^2","v":16333805676.040716},null,null,"sx"," =","Sample Standard Deviation of X Values","\"s sub x\""]
[null,27000,185000,{"$f":"(B8-$B$2)*(C8-$C$2)","v":87075000},{"$f":"(B8-$B$2)^2","v":4622500},null,207362.83018206054,500096173.75167787,1640250000,{"$f":"($C$2-G8)^2","v":328956929.00477409},null,null,"sy"," =","Sample Standard Deviation of Y Values","\"s sub y\""]
[null,39900,260000,370875000,115562500,null,316185.84908969729,3156849637.9302382,1190250000,8223923225.1193514]
[null,17000,143000,1002375000,147622500,null,123003.90079629564,399843983.3643862,6806250000,10505450351.975605]
[null,34000,270000,215825000,23522500,null,266414.08075209596,12858816.852488644,1980250000,1673962003.7890294]
[null,43000,398000,2389125000,191822500,null,342337.11719928437,3098356521.6862035,29756250000,13650911955.439312]
[null,null,null,{"$f":"SUM(D7:D12)","v":6012050000},{"$f":"SUM(E7:E12)","v":712675000},null,"SSE",{"$f":"SUM(H7:H12)","v":7168489858.631218},null,{"$f":"SUM(J7:J12)","v":50717010141.36879}]
[null,"Coefficient of Correlation = r =",null,{"$f":"D13/(D2-1)/PRODUCT(B4:C4)","v":0.93603465306822053},"Strength and Direction",null,null,"SST",{"$f":"SUM(I7:I12)","v":57885500000}]
[null,"Coefficient of Correlation = r =",null,{"$f":"PEARSON(C7:C12,B7:B12)","v":0.93603465306822031},null,null,null,"SSR = SST - SSE",{"$f":"I14-H13","v":50717010141.368782}]
[null,"Coefficient of Determination = r^2 =",null,{"$f":"D15^2","v":0.8761608717445436},"\"Goodness of fit for our line\" ",null,null,"Coefficient of Determination = r^2 = SSR/SST =",null,{"$f":"I15/I14","v":0.87616087174454371}]
[null,"Coefficient of Determination = r^2 =",null,{"$f":"RSQ(C7:C12,B7:B12)","v":0.87616087174454393},"How much of the variation in y can be explained by the variation in x (not causation)"]
[]
[]
["For every one unit of x, how much does y move",null,null,"Slope = m = b1 =",{"$f":"D13/E13","v":8.4358929385764903}]
[null,null,null,"Slope = m = b1 =",{"$f":"SLOPE(C7:C12,B7:B12)","v":8.4358929385764903}]
["The value of the equation when x = 0",null,null,"Intercept = b = b0 =",{"$f":"C2-E20*B2","v":-20406.279159504687}]
[null,null,null,"Intercept = b = b0 =",{"$f":"INTERCEPT(C7:C12,B7:B12)","v":-20406.279159504687}]
[]
[null,null,null,"x",29000]
[null,null,null,{"$f":"\"F(\"&E25&\") =\"","v":"F(29000) ="},{"$f":"E20*E25+E23","v":224234.61605921353}]
[]
[]
[]
[]
["x","Ybar"]
[{"$f":"MIN(B7:B12)","v":14000},{"$f":"$C$2","v":225500}]
[{"$f":"MAX(B7:B12)","v":43000},{"$f":"$C$2","v":225500}]

{"sheet":"S I (2)","index":6,"n_rows":21,"n_cols":9,"rows_kept":21,"cut":false,"hidden":false,"merged":[]}
["Used Toyota Camry Data",null,null,"Coefficient of Correlation = r =",null,null,null,null,"Strength and Direction"]
["Miles on Camry (x)","Price for Used Camry (y)",null,"Coefficient of Determination = r^2 =",null,null,null,null,"\"Goodness of fit for our line\" "]
[22820,14053,null,"Slope = m = b1 =",null,null,null,null,"For every one unit of x, how much does y move"]
[28339,13766,null,"Intercept = b = b0 =",null,null,null,null,"The value of the equation when x = 0"]
[38341,14697,null,null,null,"x",43520]
[45308,19090,null,null,null,{"$f":"\"F(\"&G5&\") =\"","v":"F(43520) ="},null,null,{"$f":"IF(G4<>\"\",\"y = \"&ROUND(SLOPE(B3:B21,A3:A21),4)&\"*X + \"&ROUND(INTERCEPT(B3:B21,A3:A21),2),\"\")","v":""}]
[65752,14157]
[75982,11111]
[75268,13138]
[86385,12381]
[92549,10458]
[100524,7313]
[111416,6106]
[25038,11667]
[59686,11298]
[67392,14010]
[69929,13523]
[88167,10905]
[12238,17683]
[62116,11900]
[111693,6748]

{"sheet":"S I (2an)","index":7,"n_rows":21,"n_cols":9,"rows_kept":21,"cut":false,"hidden":false,"merged":[]}
["Used Toyota Camry Data",null,null,"Coefficient of Correlation = r =",null,null,{"$f":"PEARSON(B3:B21,A3:A21)","v":-0.76906398607259407},null,"Strength and Direction"]
["Miles on Camry (x)","Price for Used Camry (y)",null,"Coefficient of Determination = r^2 =",null,null,{"$f":"G1^2","v":0.5914594146738672},null,"\"Goodness of fit for our line\" "]
[22820,14053,null,"Slope = m = b1 =",null,null,{"$f":"SLOPE(B3:B21,A3:A21)","v":-8.4691942818557228E-2},null,"For every one unit of x, how much does y move"]
[28339,13766,null,"Intercept = b = b0 =",null,null,{"$f":"INTERCEPT(B3:B21,A3:A21)","v":17838.55209007641},null,"The value of the equation when x = 0"]
[38341,14697,null,null,null,"x",43520]
[45308,19090,null,null,null,{"$f":"\"F(\"&G5&\") =\"","v":"F(43520) ="},{"$f":"G3*G5+G4","v":14152.7587386128},null,{"$f":"IF(G4<>\"\",\"y = \"&ROUND(SLOPE(B3:B21,A3:A21),4)&\"*X + \"&ROUND(INTERCEPT(B3:B21,A3:A21),2),\"\")","v":"y = -0.0847*X + 17838.55"}]
[65752,14157]
[75982,11111]
[75268,13138]
[86385,12381]
[92549,10458]
[100524,7313]
[111416,6106]
[25038,11667]
[59686,11298]
[67392,14010]
[69929,13523]
[88167,10905]
[12238,17683]
[62116,11900]
[111693,6748]

{"sheet":"Data & PT","index":8,"n_rows":215,"n_cols":36,"rows_kept":215,"cut":false,"hidden":false,"merged":[]}
["Original Question: Should Advising be Mandatory?",null,null,null,null,null,null,null,null,null,null,null,null,null,null,null,null,null,null,null,null,null,null,null,null,null,null,null,null,null,null,null,null,"Formulas","Formulas","Formulas"]
["Made up data below:",null,null,null,null,null,null,null,null,null,null,null,null,null,null,null,null,null,null,null,null,null,null,null,null,null,null,null,null,null,null,null,null,{"$f":"INDEX($AH$5:$AH$8,CHOOSE(RANDBETWEEN(1,4),4,RANDBETWEEN(1,4),RANDBETWEEN(2,4),RANDBETWEEN(3,4)))","v":"No"},{"$f":"INDEX($AI$5:$AI$11,RANDBETWEEN(1,7))","v":"Humanities"},{"$f":"INDEX($AJ$5:$AJ$13,RANDBETWEEN(1,9))","v":"One Year Contract"}]
[]
["Response","Division","Employment Status",null,null,null,null,null,null,null,null,null,null,null,null,null,null,null,null,null,null,null,null,null,null,null,null,null,null,null,null,null,null,"data","data","data"]
["Yes, but I need more information","Buisness","Full Time",null,null,null,null,null,null,null,null,null,null,null,null,null,null,null,null,null,null,null,null,null,null,null,null,null,null,null,null,null,null,"No","Buisness","Full Time"]
["Yes, but I need more information","Science","Part Time",null,null,null,null,null,null,null,null,null,null,null,null,null,null,null,null,null,null,null,null,null,null,null,null,null,null,null,null,null,null,"Not Sure","Science","Part Time"]
["Yes, but I need more information","Humanities","Full Time",null,null,null,null,null,null,null,null,null,null,null,null,null,null,null,null,null,null,null,null,null,null,null,null,null,null,null,null,null,null,"Yes","Buisness","Full Time"]
["Not Sure","Buisness","Full Time",null,null,null,null,null,null,null,null,null,null,null,null,null,null,null,null,null,null,null,null,null,null,null,null,null,null,null,null,null,null,"Yes, but I need more information","Science","Full Time"]
["Yes","Humanities","Part Time",null,null,null,null,null,null,null,null,null,null,null,null,null,null,null,null,null,null,null,null,null,null,null,null,null,null,null,null,null,null,null,"Buisness","Part Time"]
["Yes","Humanities","Full Time",null,null,null,null,null,null,null,null,null,null,null,null,null,null,null,null,null,null,null,null,null,null,null,null,null,null,null,null,null,null,null,"Humanities","Part Time"]
["Yes","Humanities","Full Time",null,null,null,null,null,null,null,null,null,null,null,null,null,null,null,null,null,null,null,null,null,null,null,null,null,null,null,null,null,null,null,"Humanities","Full Time"]
["No","Buisness","Part Time",null,null,null,null,null,null,null,null,null,null,null,null,null,null,null,null,null,null,null,null,null,null,null,null,null,null,null,null,null,null,null,null,"One Year Contract"]
["Not Sure","Science","Part Time",null,null,null,null,null,null,null,null,null,null,null,null,null,null,null,null,null,null,null,null,null,null,null,null,null,null,null,null,null,null,null,null,"One Year Contract"]
["No","Science","Full Time"]
["Yes","Science","Part Time"]
["Yes","Buisness","One Year Contract"]
["Not Sure","Buisness","Part Time"]
["Yes, but I need more information","Science","One Year Contract"]
["Yes","Humanities","Full Time"]
["Yes, but I need more information","Buisness","Part Time"]
["Yes, but I need more information","Buisness","Full Time"]
["Yes","Science","One Year Contract"]
["No","Buisness","Part Time"]
["Not Sure","Science","Part Time"]
["Yes, but I need more information","Science","One Year Contract"]
["Yes, but I need more information","Humanities","Full Time"]
["Yes, but I need more information","Humanities","Full Time"]
["Yes","Buisness","Full Time"]
["No","Buisness","Full Time"]
["Yes, but I need more information","Science","Full Time"]
["Yes","Science","Full Time"]
["Yes, but I need more information","Humanities","Part Time"]
["Yes","Humanities","Full Time"]
["Yes, but I need more information","Humanities","Full Time"]
["Yes, but I need more information","Science","Part Time"]
["Yes, but I need more information","Buisness","Full Time"]
["Yes","Science","Part Time"]
["Yes","Buisness","Part Time"]
["Yes, but I need more information","Science","One Year Contract"]
["Yes, but I need more information","Science","Full Time"]
["Not Sure","Buisness","Part Time"]
["Not Sure","Buisness","One Year Contract"]
["Yes, but I need more information","Humanities","One Year Contract"]
["Yes","Science","One Year Contract"]
["Yes","Buisness","Full Time"]
["No","Science","Full Time"]
["Yes, but I need more information","Buisness","Full Time"]
["Yes, but I need more information","Buisness","One Year Contract"]
["Yes, but I need more information","Buisness","Full Time"]
["Yes, but I need more information","Humanities","One Year Contract"]
["Not Sure","Buisness","Full Time"]
["Yes","Buisness","Part Time"]
["Yes, but I need more information","Humanities","Part Time"]
["Yes","Science","Part Time"]
["Yes, but I need more information","Buisness","Part Time"]
["Yes, but I need more information","Buisness","Full Time"]
["Yes","Science","One Year Contract"]
["Yes, but I need more information","Science","Part Time"]
["Yes, but I need more information","Buisness","Full Time"]
["Yes, but I need more information","Humanities","One Year Contract"]
["Yes, but I need more information","Buisness","Full Time"]
["Yes, but I need more information","Buisness","One Year Contract"]
["Yes, but I need more information","Buisness","Part Time"]
["Yes, but I need more information","Humanities","One Year Contract"]
["Not Sure","Buisness","Full Time"]
["Yes, but I need more information","Humanities","Full Time"]
["Yes, but I need more information","Buisness","Part Time"]
["Yes","Buisness","Part Time"]
["Yes, but I need more information","Buisness","Part Time"]
["Not Sure","Humanities","Full Time"]
["Yes, but I need more information","Buisness","Part Time"]
["Yes, but I need more information","Buisness","Part Time"]
["Yes","Humanities","Full Time"]
["Yes","Humanities","Full Time"]
["Not Sure","Buisness","Part Time"]
["Yes","Science","Full Time"]
["Yes","Science","One Year Contract"]
["Yes","Buisness","Full Time"]
["Yes, but I need more information","Science","Part Time"]
["Yes","Humanities","Full Time"]
["Not Sure","Science","One Year Contract"]
["Yes, but I need more information","Humanities","Full Time"]
["Yes, but I need more information","Buisness","Part Time"]
["Yes, but I need more information","Science","Full Time"]
["Not Sure","Science","One Year Contract"]
["Yes","Humanities","Part Time"]
["Not Sure","Science","One Year Contract"]
["Yes","Buisness","Full Time"]
["Yes, but I need more information","Science","Full Time"]
["Yes, but I need more information","Science","Full Time"]
["Yes, but I need more information","Humanities","Full Time"]
["Not Sure","Science","One Year Contract"]
["Yes","Buisness","Full Time"]
["Yes, but I need more information","Humanities","One Year Contract"]
["Yes, but I need more information","Buisness","Full Time"]
["Yes","Humanities","Part Time"]
["Yes","Science","Part Time"]
["Not Sure","Humanities","Part Time"]
["Yes, but I need more information","Science","Full Time"]
["Yes, but I need more information","Buisness","Full Time"]
["Yes, but I need more information","Humanities","Part Time"]
["Not Sure","Humanities","Full Time"]
["No","Science","Full Time"]
["Yes, but I need more information","Buisness","Part Time"]
["Yes","Buisness","Part Time"]
["Yes","Humanities","One Year Contract"]
["Yes, but I need more information","Buisness","Part Time"]
["Yes, but I need more information","Buisness","Full Time"]
["Yes","Science","Part Time"]
["Yes, but I need more information","Buisness","One Year Contract"]
["Not Sure","Science","One Year Contract"]
["Yes, but I need more information","Humanities","Part Time"]
["Yes, but I need more information","Humanities","Full Time"]
["Yes, but I need more information","Buisness","Full Time"]
["Not Sure","Buisness","Full Time"]
["Yes, but I need more information","Humanities","One Year Contract"]
["Yes, but I need more information","Humanities","Full Time"]
["Yes, but I need more information","Buisness","One Year Contract"]
["Yes, but I need more information","Buisness","One Year Contract"]
["Yes","Humanities","Full Time"]
["Not Sure","Buisness","Full Time"]
["Yes","Science","Part Time"]
["Yes, but I need more information","Buisness","One Year Contract"]
["Yes, but I need more information","Humanities","Part Time"]
["Yes, but I need more information","Science","Part Time"]
["No","Science","Full Time"]
["Yes, but I need more information","Science","One Year Contract"]
["Yes, but I need more information","Buisness","Part Time"]
["Yes","Science","Part Time"]
["Yes","Buisness","Full Time"]
["Not Sure","Buisness","Part Time"]
["Yes, but I need more information","Science","Part Time"]
["Yes, but I need more information","Buisness","Full Time"]
["Yes, but I need more information","Buisness","Part Time"]
["Yes","Humanities","Full Time"]
["Yes, but I need more information","Buisness","Full Time"]
["Yes, but I need more information","Humanities","Full Time"]
["Yes","Humanities","Full Time"]
["Yes","Humanities","Full Time"]
["Yes, but I need more information","Humanities","Part Time"]
["Yes","Science","Part Time"]
["Yes, but I need more information","Humanities","Part Time"]
["Yes, but I need more information","Buisness","Full Time"]
["Not Sure","Humanities","Full Time"]
["Yes","Buisness","Full Time"]
["Yes, but I need more information","Humanities","Full Time"]
["Yes, but I need more information","Buisness","Full Time"]
["Not Sure","Buisness","Full Time"]
["Yes, but I need more information","Buisness","Part Time"]
["No","Buisness","One Year Contract"]
["Yes","Science","Full Time"]
["Yes, but I need more information","Science","Full Time"]
["Yes","Humanities","One Year Contract"]
["Yes","Buisness","One Year Contract"]
["Yes, but I need more information","Humanities","Part Time"]
["Yes","Buisness","Part Time"]
["Not Sure","Humanities","One Year Contract"]
["Yes, but I need more information","Science","Full Time"]
["Yes, but I need more information","Buisness","Full Time"]
["Yes","Buisness","Part Time"]
["Yes, but I need more information","Buisness","Part Time"]
["Yes","Science","Full Time"]
["No","Science","Part Time"]
["Yes, but I need more information","Science","Full Time"]
["Not Sure","Buisness","Full Time"]
["Yes","Humanities","Part Time"]
["Yes, but I need more information","Humanities","One Year Contract"]
["Yes, but I need more information","Science","One Year Contract"]
["Yes, but I need more information","Buisness","Full Time"]
["Yes, but I need more information","Buisness","Full Time"]
["Not Sure","Science","Full Time"]
["Yes, but I need more information","Science","Part Time"]
["Not Sure","Humanities","Part Time"]
["Yes, but I need more information","Humanities","Part Time"]
["Yes","Humanities","One Year Contract"]
["Yes, but I need more information","Humanities","One Year Contract"]
["Yes, but I need more information","Buisness","Full Time"]
["Not Sure","Science","Part Time"]
["Yes, but I need more information","Buisness","Full Time"]
["Yes, but I need more information","Humanities","Full Time"]
["Yes, but I need more information","Humanities","Full Time"]
["Yes, but I need more information","Science","Full Time"]
["Yes","Buisness","Full Time"]
["Not Sure","Humanities","Full Time"]
["No","Buisness","Part Time"]
["Not Sure","Buisness","One Year Contract"]
["Not Sure","Buisness","Full Time"]
["Yes","Science","Part Time"]
["Yes","Buisness","Part Time"]
["Yes, but I need more information","Humanities","Part Time"]
["Yes, but I need more information","Buisness","Part Time"]
["Yes","Science","One Year Contract"]
["Yes, but I need more information","Science","Full Time"]
["Yes, but I need more information","Humanities","Full Time"]
["Not Sure","Buisness","Full Time"]
["Not Sure","Buisness","Full Time"]
["No","Buisness","Full Time"]
["Yes, but I need more information","Science","Full Time"]
["No","Buisness","Full Time"]
["Yes, but I need more information","Buisness","Part Time"]
["Yes, but I need more information","Science","Part Time"]
["Not Sure","Buisness","One Year Contract"]
["Not Sure","Humanities","One Year Contract"]
["Yes, but I need more information","Humanities","Full Time"]
["Yes, but I need more information","Buisness","Full Time"]
["Yes","Science","Full Time"]
["Yes","Humanities","Full Time"]
["Not Sure","Science","Part Time"]
["Yes","Science","Full Time"]
["Not Sure","Buisness","Full Time"]
["Yes","Humanities","Full Time"]
["Yes","Science","Full Time"]
["Yes, but I need more information","Science","One Year Contract"]
["Yes","Humanities","Part Time"]
["Not Sure","Buisness","One Year Contract"]

{"sheet":"Data & PT (an)","index":9,"n_rows":215,"n_cols":36,"rows_kept":215,"cut":false,"hidden":false,"merged":[]}
["Original Question: Should Advising be Mandatory?",null,null,null,null,null,null,null,null,null,null,null,null,null,null,null,null,null,null,null,null,null,null,null,null,null,null,null,null,null,null,null,null,"Formulas","Formulas","Formulas"]
["Made up data below:",null,null,null,null,null,null,null,null,null,null,null,null,null,null,null,null,null,null,null,null,null,null,null,null,null,null,null,null,null,null,null,null,{"$f":"INDEX($AH$4:$AH$7,CHOOSE(RANDBETWEEN(1,4),4,RANDBETWEEN(1,4),RANDBETWEEN(2,4),RANDBETWEEN(3,4)))","v":"Yes, but I need more information"},{"$f":"INDEX($AI$4:$AI$10,RANDBETWEEN(1,7))","v":"Humanities"},{"$f":"INDEX($AJ$4:$AJ$12,RANDBETWEEN(1,9))","v":"One Year Contract"}]
[null,null,null,null,"Response","Frequency","Relative Frequency",null,null,null,null,null,null,null,null,null,null,null,null,null,null,null,null,null,null,null,null,null,null,null,null,null,null,"data","data","data"]
["Response","Division","Employment Status",null,"No",3,6.8181818181818177E-2,null,null,null,null,null,null,null,null,null,null,null,null,null,null,null,null,null,null,null,null,null,null,null,null,null,null,"No","Buisness","Full Time"]
["Yes, but I need more information","Buisness","Full Time",null,"Not Sure",11,0.25,null,null,null,null,null,null,null,null,null,null,null,null,null,null,null,null,null,null,null,null,null,null,null,null,null,null,"Not Sure","Science","Part Time"]
["Yes, but I need more information","Science","Part Time",null,"Yes",8,0.18181818181818182,null,null,null,null,null,null,null,null,null,null,null,null,null,null,null,null,null,null,null,null,null,null,null,null,null,null,"Yes","Buisness","Full Time"]
["Yes, but I need more information","Humanities","Full Time",null,"Yes, but I need more information",22,0.5,null,null,null,null,null,null,null,null,null,null,null,null,null,null,null,null,null,null,null,null,null,null,null,null,null,null,"Yes, but I need more information","Science","Full Time"]
["Not Sure","Buisness","Full Time",null,"Grand Total",44,1,null,null,null,null,null,null,null,null,null,null,null,null,null,null,null,null,null,null,null,null,null,null,null,null,null,null,null,"Buisness","Part Time"]
["Yes","Humanities","Part Time",null,null,null,null,null,null,null,null,null,null,null,null,null,null,null,null,null,null,null,null,null,null,null,null,null,null,null,null,null,null,null,"Humanities","Part Time"]
["Yes","Humanities","Full Time",null,null,null,null,null,null,null,null,null,null,null,null,null,null,null,null,null,null,null,null,null,null,null,null,null,null,null,null,null,null,null,"Humanities","Full Time"]
["Yes","Humanities","Full Time",null,null,null,null,null,null,null,null,null,null,null,null,null,null,null,null,null,null,null,null,null,null,null,null,null,null,null,null,null,null,null,null,"One Year Contract"]
["No","Buisness","Part Time",null,null,null,null,null,null,null,null,null,null,null,null,null,null,null,null,null,null,null,null,null,null,null,null,null,null,null,null,null,null,null,null,"One Year Contract"]
["Not Sure","Science","Part Time"]
["No","Science","Full Time"]
["Yes","Science","Part Time"]
["Yes","Buisness","One Year Contract"]
["Not Sure","Buisness","Part Time"]
["Yes, but I need more information","Science","One Year Contract"]
["Yes","Humanities","Full Time"]
["Yes, but I need more information","Buisness","Part Time"]
["Yes, but I need more information","Buisness","Full Time"]
["Yes","Science","One Year Contract"]
["No","Buisness","Part Time"]
["Not Sure","Science","Part Time"]
["Yes, but I need more information","Science","One Year Contract"]
["Yes, but I need more information","Humanities","Full Time"]
["Yes, but I need more information","Humanities","Full Time"]
["Yes","Buisness","Full Time"]
["No","Buisness","Full Time"]
["Yes, but I need more information","Science","Full Time"]
["Yes","Science","Full Time"]
["Yes, but I need more information","Humanities","Part Time"]
["Yes","Humanities","Full Time"]
["Yes, but I need more information","Humanities","Full Time"]
["Yes, but I need more information","Science","Part Time"]
["Yes, but I need more information","Buisness","Full Time"]
["Yes","Science","Part Time"]
["Yes","Buisness","Part Time"]
["Yes, but I need more information","Science","One Year Contract"]
["Yes, but I need more information","Science","Full Time"]
["Not Sure","Buisness","Part Time"]
["Not Sure","Buisness","One Year Contract"]
["Yes, but I need more information","Humanities","One Year Contract"]
["Yes","Science","One Year Contract"]
["Yes","Buisness","Full Time"]
["No","Science","Full Time"]
["Yes, but I need more information","Buisness","Full Time"]
["Yes, but I need more information","Buisness","One Year Contract"]
["Yes, but I need more information","Buisness","Full Time"]
["Yes, but I need more information","Humanities","One Year Contract"]
["Not Sure","Buisness","Full Time"]
["Yes","Buisness","Part Time"]
["Yes, but I need more information","Humanities","Part Time"]
["Yes","Science","Part Time"]
["Yes, but I need more information","Buisness","Part Time"]
["Yes, but I need more information","Buisness","Full Time"]
["Yes","Science","One Year Contract"]
["Yes, but I need more information","Science","Part Time"]
["Yes, but I need more information","Buisness","Full Time"]
["Yes, but I need more information","Humanities","One Year Contract"]
["Yes, but I need more information","Buisness","Full Time"]
["Yes, but I need more information","Buisness","One Year Contract"]
["Yes, but I need more information","Buisness","Part Time"]
["Yes, but I need more information","Humanities","One Year Contract"]
["Not Sure","Buisness","Full Time"]
["Yes, but I need more information","Humanities","Full Time"]
["Yes, but I need more information","Buisness","Part Time"]
["Yes","Buisness","Part Time"]
["Yes, but I need more information","Buisness","Part Time"]
["Not Sure","Humanities","Full Time"]
["Yes, but I need more information","Buisness","Part Time"]
["Yes, but I need more information","Buisness","Part Time"]
["Yes","Humanities","Full Time"]
["Yes","Humanities","Full Time"]
["Not Sure","Buisness","Part Time"]
["Yes","Science","Full Time"]
["Yes","Science","One Year Contract"]
["Yes","Buisness","Full Time"]
["Yes, but I need more information","Science","Part Time"]
["Yes","Humanities","Full Time"]
["Not Sure","Science","One Year Contract"]
["Yes, but I need more information","Humanities","Full Time"]
["Yes, but I need more information","Buisness","Part Time"]
["Yes, but I need more information","Science","Full Time"]
["Not Sure","Science","One Year Contract"]
["Yes","Humanities","Part Time"]
["Not Sure","Science","One Year Contract"]
["Yes","Buisness","Full Time"]
["Yes, but I need more information","Science","Full Time"]
["Yes, but I need more information","Science","Full Time"]
["Yes, but I need more information","Humanities","Full Time"]
["Not Sure","Science","One Year Contract"]
["Yes","Buisness","Full Time"]
["Yes, but I need more information","Humanities","One Year Contract"]
["Yes, but I need more information","Buisness","Full Time"]
["Yes","Humanities","Part Time"]
["Yes","Science","Part Time"]
["Not Sure","Humanities","Part Time"]
["Yes, but I need more information","Science","Full Time"]
["Yes, but I need more information","Buisness","Full Time"]
["Yes, but I need more information","Humanities","Part Time"]
["Not Sure","Humanities","Full Time"]
["No","Science","Full Time"]
["Yes, but I need more information","Buisness","Part Time"]
["Yes","Buisness","Part Time"]
["Yes","Humanities","One Year Contract"]
["Yes, but I need more information","Buisness","Part Time"]
["Yes, but I need more information","Buisness","Full Time"]
["Yes","Science","Part Time"]
["Yes, but I need more information","Buisness","One Year Contract"]
["Not Sure","Science","One Year Contract"]
["Yes, but I need more information","Humanities","Part Time"]
["Yes, but I need more information","Humanities","Full Time"]
["Yes, but I need more information","Buisness","Full Time"]
["Not Sure","Buisness","Full Time"]
["Yes, but I need more information","Humanities","One Year Contract"]
["Yes, but I need more information","Humanities","Full Time"]
["Yes, but I need more information","Buisness","One Year Contract"]
["Yes, but I need more information","Buisness","One Year Contract"]
["Yes","Humanities","Full Time"]
["Not Sure","Buisness","Full Time"]
["Yes","Science","Part Time"]
["Yes, but I need more information","Buisness","One Year Contract"]
["Yes, but I need more information","Humanities","Part Time"]
["Yes, but I need more information","Science","Part Time"]
["No","Science","Full Time"]
["Yes, but I need more information","Science","One Year Contract"]
["Yes, but I need more information","Buisness","Part Time"]
["Yes","Science","Part Time"]
["Yes","Buisness","Full Time"]
["Not Sure","Buisness","Part Time"]
["Yes, but I need more information","Science","Part Time"]
["Yes, but I need more information","Buisness","Full Time"]
["Yes, but I need more information","Buisness","Part Time"]
["Yes","Humanities","Full Time"]
["Yes, but I need more information","Buisness","Full Time"]
["Yes, but I need more information","Humanities","Full Time"]
["Yes","Humanities","Full Time"]
["Yes","Humanities","Full Time"]
["Yes, but I need more information","Humanities","Part Time"]
["Yes","Science","Part Time"]
["Yes, but I need more information","Humanities","Part Time"]
["Yes, but I need more information","Buisness","Full Time"]
["Not Sure","Humanities","Full Time"]
["Yes","Buisness","Full Time"]
["Yes, but I need more information","Humanities","Full Time"]
["Yes, but I need more information","Buisness","Full Time"]
["Not Sure","Buisness","Full Time"]
["Yes, but I need more information","Buisness","Part Time"]
["No","Buisness","One Year Contract"]
["Yes","Science","Full Time"]
["Yes, but I need more information","Science","Full Time"]
["Yes","Humanities","One Year Contract"]
["Yes","Buisness","One Year Contract"]
["Yes, but I need more information","Humanities","Part Time"]
["Yes","Buisness","Part Time"]
["Not Sure","Humanities","One Year Contract"]
["Yes, but I need more information","Science","Full Time"]
["Yes, but I need more information","Buisness","Full Time"]
["Yes","Buisness","Part Time"]
["Yes, but I need more information","Buisness","Part Time"]
["Yes","Science","Full Time"]
["No","Science","Part Time"]
["Yes, but I need more information","Science","Full Time"]
["Not Sure","Buisness","Full Time"]
["Yes","Humanities","Part Time"]
["Yes, but I need more information","Humanities","One Year Contract"]
["Yes, but I need more information","Science","One Year Contract"]
["Yes, but I need more information","Buisness","Full Time"]
["Yes, but I need more information","Buisness","Full Time"]
["Not Sure","Science","Full Time"]
["Yes, but I need more information","Science","Part Time"]
["Not Sure","Humanities","Part Time"]
["Yes, but I need more information","Humanities","Part Time"]
["Yes","Humanities","One Year Contract"]
["Yes, but I need more information","Humanities","One Year Contract"]
["Yes, but I need more information","Buisness","Full Time"]
["Not Sure","Science","Part Time"]
["Yes, but I need more information","Buisness","Full Time"]
["Yes, but I need more information","Humanities","Full Time"]
["Yes, but I need more information","Humanities","Full Time"]
["Yes, but I need more information","Science","Full Time"]
["Yes","Buisness","Full Time"]
["Not Sure","Humanities","Full Time"]
["No","Buisness","Part Time"]
["Not Sure","Buisness","One Year Contract"]
["Not Sure","Buisness","Full Time"]
["Yes","Science","Part Time"]
["Yes","Buisness","Part Time"]
["Yes, but I need more information","Humanities","Part Time"]
["Yes, but I need more information","Buisness","Part Time"]
["Yes","Science","One Year Contract"]
["Yes, but I need more information","Science","Full Time"]
["Yes, but I need more information","Humanities","Full Time"]
["Not Sure","Buisness","Full Time"]
["Not Sure","Buisness","Full Time"]
["No","Buisness","Full Time"]
["Yes, but I need more information","Science","Full Time"]
["No","Buisness","Full Time"]
["Yes, but I need more information","Buisness","Part Time"]
["Yes, but I need more information","Science","Part Time"]
["Not Sure","Buisness","One Year Contract"]
["Not Sure","Humanities","One Year Contract"]
["Yes, but I need more information","Humanities","Full Time"]
["Yes, but I need more information","Buisness","Full Time"]
["Yes","Science","Full Time"]
["Yes","Humanities","Full Time"]
["Not Sure","Science","Part Time"]
["Yes","Science","Full Time"]
["Not Sure","Buisness","Full Time"]
["Yes","Humanities","Full Time"]
["Yes","Science","Full Time"]
["Yes, but I need more information","Science","One Year Contract"]
["Yes","Humanities","Part Time"]
["Not Sure","Buisness","One Year Contract"]

{"sheet":"BMX Data","index":10,"n_rows":24,"n_cols":3,"rows_kept":24,"cut":false,"hidden":false,"merged":[]}
["For Entry Level BMX Race Bikes, Is there a relationship between Price and Weight of Bike?"]
[]
[]
["Year Manufacturer and Model","Price","Bike Weight (pound)"]
["2015 SE Ripper",299,22.4]
["2014 Redline MX 20",462,21]
["2015 SE PK Ripper Elite",549,21]
["2015 Grenade Launch Pro X",180,26]
["2015 SE PK Ripper Elite XL",549,21.1]
["2015 Grenade M1",240,26]
["2015 Framed Team",180,26.4]
["2014 Redline MX 20",431,21]
["2014 Framed Team",360,25.2]
["2014 Grenade MX",230,26]
["2014 Grenade Stealth Deep Sea Blue",270,25]
["2014 Grenade Flare X",150,26.8]
["2014 Grenade Launch Blue",170,25.2]
["2014 Grenade Launch X",160,27]
["2014 Framed Verdict Blank",159,25.4]
["2014 SE PK Ripper Elite",500,20.7]
["2013 Redline Proline Pro",560,21.9]
["2012 Redline Proline Pro XL",560,22.5]
["2013 Redline Proline Expert XL",499,20.100000000000001]
["2013 Redline MX 20",379,23]